[Event "1st 4NCL International U2050"]
[Site "Telford"]
[Date "2018.11.02"]
[Round "5"]
[White "Gorgun, Aliriza Atif"]
[Black "Pert, Max"]
[Result "0-1"]
[ECO "B10"]
[WhiteElo "1739"]
[BlackElo "1393"]
[Annotator "NA"]
[PlyCount "48"]
[EventDate "2018.10.31"]
[EventType "swiss"]
[EventCountry "GBR"]
[SourceTitle "playchess.com"]
[Source "ChessBase"]
[SourceQuality "1"]
[TimeControl "5400+30"]

1. e4 c6 2. Nf3 d5 3. exd5 {[%emt 0:01:00]} cxd5 {[%emt 0:01:00]} 4. Bb5+ {[%emt 0:00:30]} Bd7 {[%emt 0:00:30]} 5. Bxd7+ {[%emt 0:00:30]} Nxd7 {[%emt 0:00:30]} 6. O-O {[%emt 0:00:30]} Ngf6 {[%emt 0:00:30]} 7. c3 {[%emt 0:00:30]} e5 {[%emt 0:00:30]} 8. Qa4 {[%emt 0:00:30]} Bd6 {[%emt 0:00:30]} 9. d4 {[%emt 0:00:30]} e4 {[%emt 0:00:30]} 10. Ne5 {[%emt 0:00:30]} Qc7 {[%emt 0:00:30]} 11. f4 {[%emt 0:00:30]} O-O {[%emt 0:00:30]} 12. Nxd7 {[%emt 0:00:30]} Nxd7 {[%emt 0:00:30]} 13. Qd1 {[%emt 0:00:30]} Rfe8 {[%emt 0:00:30]} 14. f5 {[%emt 0:00:30]} Bxh2+ {[%emt 0:00:30]} 15. Kf2 {[%emt 0:00:30]} Qg3+ {[%emt 0:00:30]} 16. Ke2 {[%emt 0:00:30]} Qxg2+ {[%emt 0:00:30]} 17. Rf2 {[%emt 0:00:30]} Qg4+ {[%emt 0:00:30]} 18. Ke1 {[%emt 0:00:30]} Qh4 {[%emt 0:00:30]} 19. Kf1 {[%emt 0:00:30]} e3 {[%emt 0:00:30]} 20. Rg2 {[%emt 0:00:30]} Qh3 {[%emt 0:00:30]} 21. Qc2 {[%emt 0:00:30]} e2+ {[%emt 0:00:30]} 22. Ke1 {[%emt 0:00:30]} Bg3+ {[%emt 0:00:30]} 23. Rf2 {[%emt 0:00:30]} Bxf2+ {[%emt 0:00:30]} 24. Kxf2 {[%emt 0:00:30]} e1=Q# {[%emt 0:00:30]} 0-1

[Event "1st 4NCL International U2050"]
[Site "Telford"]
[Date "2018.11.02"]
[Round "5"]
[White "Gorgun, Aliriza Atif"]
[Black "Ansari, Athar"]
[Result "1/2-1/2"]
[ECO "B01"]
[WhiteElo "1739"]
[BlackElo "1898"]
[Annotator "NA"]
[PlyCount "130"]
[EventDate "2018.10.31"]
[EventType "swiss"]
[EventCountry "GBR"]
[SourceTitle "playchess.com"]
[Source "ChessBase"]
[SourceQuality "1"]
[TimeControl "5400+30"]

1. e4 {[%emt 0:00:00]} d5 {[%emt 0:00:00]} 2. exd5 {[%emt 0:00:00]} Qxd5 {[%emt 0:00:00]} 3. Nc3 {[%emt 0:00:00]} Qa5 {[%emt 0:00:07]} 4. d4 {[%emt 0:00:09]} Nf6 {[%emt 0:00:17]} 5. Bd2 {[%emt 0:00:29]} c6 {[%emt 0:02:49]} 6. Bc4 {[%emt 0:00:58]} Bf5 {[%emt 0:01:30]} 7. Nd5 {[%emt 0:02:56]} Qd8 {[%emt 0:00:12]} 8. Nxf6+ {[%emt 0:00:20]} gxf6 {[%emt 0:00:51]} 9. c3 {[%emt 0:10:20]} e6 {[%emt 0:01:17]} 10. Ne2 {[%emt 0:01:36]} Qb6 {[%emt 0:01:03]} 11. Ng3 {[%emt 0:03:59]} Bg6 {[%emt 0:00:27]} 12. Qe2 {[%emt 0:04:24]} Nd7 {[%emt 0:01:53]} 13. O-O {[%emt 0:04:31]} O-O-O {[%emt 0:00:10]} 14. Be3 {[%emt 0:01:17]} Qc7 {[%emt 0:01:30]} 15. f4 {[%emt 0:07:09]} Bd6 {[%emt 0:00:08]} 16. b4 {[%emt 0:01:12]} h5 {[%emt 0:00:31]} 17. Qf3 {[%emt 0:01:31]} f5 {[%emt 0:03:37]} 18. b5 {[%emt 0:01:34]} h4 {[%emt 0:01:16]} 19. Ne2 {[%emt 0:00:20]} Bh5 {[%emt 0:01:49]} 20. Qf2 {[%emt 0:00:05]} Nf6 {[%emt 0:00:32]} 21. bxc6 {[%emt 0:00:54]} Qxc6 {[%emt 0:00:15]} 22. Bd3 {[%emt 0:03:47]} h3 {[%emt 0:01:26]} 23. Bd2 {[%emt 0:06:27]} Bxe2 {[%emt 0:03:24]} 24. Qxe2 {[%emt 0:01:47]} hxg2 {[%emt 0:00:08]} 25. Rf3 {[%emt 0:00:35]} Rdg8 {[%emt 0:01:43]} 26. c4 {[%emt 0:05:02]} Rh4 {[%emt 0:01:06]} 27. c5 {[%emt 0:03:00]} Bc7 {[%emt 0:00:31]} 28. Bb5 {[%emt 0:00:38]} Qe4 {[%emt 0:00:27]} 29. Qxe4 {[%emt 0:03:11]} Nxe4 {[%emt 0:00:49]} 30. Rd1 {[%emt 0:03:48]} Nxd2 {[%emt 0:03:03]} 31. Rxd2 {[%emt 0:00:09]} Bxf4 {[%emt 0:00:26]} 32. Rxg2 {[%emt 0:00:24]} Rxg2+ {[%emt 0:00:24]} 33. Kxg2 {[%emt 0:00:05]} Rxh2+ {[%emt 0:01:00]} 34. Kg1 {[%emt 0:00:02]} Rb2 {[%emt 0:00:37]} 35. Be8 {[%emt 0:00:09]} Bh2+ {[%emt 0:00:43]} 36. Kh1 {[%emt 0:02:26]} f6 {[%emt 0:00:10]} 37. Bf7 {[%emt 0:01:32]} Kd7 {[%emt 0:00:06]} 38. Re3 {[%emt 0:00:43]} e5 {[%emt 0:00:07]} 39. d5 {[%emt 0:00:30]} Ke7 {[%emt 0:00:37]} 40. Be6 {[%emt 0:00:34]} Bf4 {[%emt 0:05:55]} 41. Rh3 {[%emt 0:00:26]} Rb1+ {[%emt 0:00:21]} 42. Kg2 {[%emt 0:00:06]} Rb2+ {[%emt 0:00:10]} 43. Kh1 {[%emt 0:00:05]} e4 {[%emt 0:02:06]} 44. Rh7+ {[%emt 0:00:11]} Kf8 {[%emt 0:00:39]} 45. d6 {[%emt 0:02:54]} Rd2 {[%emt 0:00:25]} 46. d7 {[%emt 0:05:00]} e3 {[%emt 0:05:12]} 47. Rf7+ {[%emt 0:00:10]} Kg8 {[%emt 0:00:07]} 48. Re7+ {[%emt 0:00:23]} Kf8 {[%emt 0:00:51]} 49. Re8+ {[%emt 0:00:38]} Kg7 {[%emt 0:00:03]} 50. Bxf5 {[%emt 0:00:14]} Be5 {[%emt 0:02:02]} 51. Bg4 {[%emt 0:00:51]} e2 {[%emt 0:00:42]} 52. Bxe2 {[%emt 0:00:13]} Rxd7 {[%emt 0:00:08]} 53. Ra8 {[%emt 0:02:53]} a6 {[%emt 0:00:07]} 54. Ra7 {[%emt 0:04:03]} Bb8 {[%emt 0:00:58]} 55. c6 {[%emt 0:00:50]} Bxa7 {[%emt 0:01:01]} 56. cxd7 {[%emt 0:00:04]} Bb6 {[%emt 0:00:11]} 57. Bf3 {[%emt 0:00:04]} Kg6 {[%emt 0:01:10]} 58. Bxb7 {[%emt 0:00:09]} a5 {[%emt 0:00:08]} 59. a4 {[%emt 0:00:05]} Kf5 {[%emt 0:00:21]} 60. Kg2 {[%emt 0:00:11]} Kf4 {[%emt 0:00:15]} 61. Bc6 {[%emt 0:00:44]} f5 {[%emt 0:00:09]} 62. Bb7 {[%emt 0:00:27]} Ke3 {[%emt 0:00:04]} 63. Bc6 {[%emt 0:00:37]} Kd4 {[%emt 0:00:42]} 64. Kf3 {[%emt 0:00:08]} Ke5 {[%emt 0:00:56]} 65. Bb5 {[%emt 0:00:36]} f4 {[%emt 0:00:26]} 1/2-1/2

[Event "1st 4NCL International U2050"]
[Site "Telford"]
[Date "2018.11.02"]
[Round "5"]
[White "Wiltshir, Rich"]
[Black "Wilson, Matthew R"]
[Result "1/2-1/2"]
[ECO "A00"]
[WhiteElo "1673"]
[BlackElo "1820"]
[Annotator "NA"]
[PlyCount "76"]
[EventDate "2018.10.31"]
[EventType "swiss"]
[EventCountry "GBR"]
[SourceTitle "playchess.com"]
[Source "ChessBase"]
[SourceQuality "1"]
[TimeControl "5400+30"]

1. b4 {[%emt 0:00:00]} Nf6 {[%emt 0:00:35]} 2. Bb2 {[%emt 0:00:31]} e6 {[%emt 0:00:12]} 3. a3 {[%emt 0:00:14]} Be7 {[%emt 0:02:22]} 4. Nf3 {[%emt 0:00:31]} O-O {[%emt 0:00:18]} 5. g3 {[%emt 0:00:35]} b6 {[%emt 0:00:11]} 6. Bg2 {[%emt 0:00:15]} Bb7 {[%emt 0:00:05]} 7. O-O {[%emt 0:00:23]} d5 {[%emt 0:00:30]} 8. d3 {[%emt 0:00:26]} Nbd7 {[%emt 0:00:58]} 9. Nbd2 {[%emt 0:00:30]} c5 {[%emt 0:01:22]} 10. Rb1 {[%emt 0:03:16]} Qc7 {[%emt 0:02:09]} 11. bxc5 {[%emt 0:01:46]} bxc5 {[%emt 0:05:03]} 12. Ne5 {[%emt 0:04:27]} Rab8 {[%emt 0:06:58]} 13. Nxd7 {[%emt 0:03:16]} Nxd7 {[%emt 0:01:40]} 14. c4 {[%emt 0:01:04]} d4 {[%emt 0:06:31]} 15. Bxb7 {[%emt 0:01:42]} Rxb7 {[%emt 0:00:11]} 16. a4 {[%emt 0:06:15]} h5 {[%emt 0:09:14]} 17. Ba3 {[%emt 0:02:05]} Rxb1 {[%emt 0:02:25]} 18. Qxb1 {[%emt 0:05:34]} h4 {[%emt 0:07:26]} 19. Nf3 {[%emt 0:02:48]} Rb8 {[%emt 0:04:21]} 20. Qa1 {[%emt 0:02:54]} Ne5 {[%emt 0:04:52]} 21. Rb1 {[%emt 0:04:10]} Nxf3+ {[%emt 0:09:19]} 22. exf3 {[%emt 0:00:50]} Rxb1+ {[%emt 0:02:37]} 23. Qxb1 {[%emt 0:00:21]} h3 {[%emt 0:02:28]} 24. Qb5 {[%emt 0:03:16]} Qe5 {[%emt 0:03:00]} 25. Kf1 {[%emt 0:02:46]} Qc7 {[%emt 0:10:36]} 26. Bc1 {[%emt 0:08:22]} Qc8 {[%emt 0:04:04]} 27. Bf4 {[%emt 0:01:52]} Kh7 {[%emt 0:00:40]} 28. Qb8 {[%emt 0:02:17]} Qc6 {[%emt 0:01:28]} 29. Qxa7 {[%emt 0:00:56]} Qxf3 {[%emt 0:01:02]} 30. Ke1 {[%emt 0:00:16]} Bd8 {[%emt 0:04:02]} 31. Qxc5 {[%emt 0:04:09]} Qxd3 {[%emt 0:00:13]} 32. Qh5+ {[%emt 0:01:06]} Kg8 {[%emt 0:00:06]} 33. Qb5 {[%emt 0:00:15]} Qe4+ {[%emt 0:03:50]} 34. Kd2 {[%emt 0:01:00]} Kh7 {[%emt 0:03:11]} 35. Qh5+ {[%emt 0:02:08]} Kg8 {[%emt 0:00:01]} 36. Qb5 {[%emt 0:00:24]} Kh7 {[%emt 0:01:04]} 37. Qh5+ {[%emt 0:03:55]} Kg8 {[%emt 0:00:03]} 38. Qb5 {[%emt 0:00:17]} Qf5 {[%emt 0:01:55]} 1/2-1/2

[Event "1st 4NCL International U2050"]
[Site "Telford"]
[Date "2018.11.02"]
[Round "5"]
[White "Stubbs, Oliver"]
[Black "Wynarczyk, Raymond"]
[Result "1-0"]
[ECO "D00"]
[WhiteElo "1672"]
[BlackElo "1908"]
[Annotator "NA"]
[PlyCount "79"]
[EventDate "2018.10.31"]
[EventType "swiss"]
[EventCountry "GBR"]
[SourceTitle "playchess.com"]
[Source "ChessBase"]
[SourceQuality "1"]
[TimeControl "5400+30"]

1. d4 {[%emt 0:00:09]} d5 {[%emt 0:00:00]} 2. Bf4 {[%emt 0:00:07]} Bf5 {[%emt 0:00:00]} 3. e3 {[%emt 0:00:09]} e6 {[%emt 0:00:18]} 4. c4 {[%emt 0:00:37]} Bxb1 {[%emt 0:01:00]} 5. Qxb1 {[%emt 0:00:12]} Bb4+ {[%emt 0:00:15]} 6. Kd1 {[%emt 0:00:04]} Bd6 {[%emt 0:03:34]} 7. Bg3 {[%emt 0:03:47]} Nf6 {[%emt 0:00:38]} 8. Nf3 {[%emt 0:03:45]} Ne4 {[%emt 0:02:37]} 9. Qc2 {[%emt 0:03:21]} O-O {[%emt 0:02:30]} 10. Bd3 {[%emt 0:00:21]} f5 {[%emt 0:01:21]} 11. Ke2 {[%emt 0:12:51]} Nc6 {[%emt 0:01:41]} 12. a3 {[%emt 0:03:45]} Be7 {[%emt 0:09:31]} 13. cxd5 {[%emt 0:04:16]} exd5 {[%emt 0:01:53]} 14. Bb5 {[%emt 0:01:17]} Nxg3+ {[%emt 0:05:40]} 15. hxg3 {[%emt 0:00:16]} Qd6 {[%emt 0:03:00]} 16. Rac1 {[%emt 0:09:08]} Rf6 {[%emt 0:07:16]} 17. Bxc6 {[%emt 0:01:01]} Qxc6 {[%emt 0:00:45]} 18. Qxc6 {[%emt 0:00:10]} Rxc6 {[%emt 0:01:01]} 19. Rxc6 {[%emt 0:00:03]} bxc6 {[%emt 0:00:16]} 20. Rc1 {[%emt 0:00:24]} Rb8 {[%emt 0:03:13]} 21. b4 {[%emt 0:00:47]} a5 {[%emt 0:00:26]} 22. Ne5 {[%emt 0:00:36]} axb4 {[%emt 0:01:59]} 23. Nxc6 {[%emt 0:00:25]} Re8 {[%emt 0:00:55]} 24. Nxe7+ {[%emt 0:00:16]} Rxe7 {[%emt 0:00:12]} 25. axb4 {[%emt 0:00:02]} Kf7 {[%emt 0:05:06]} 26. Rc6 {[%emt 0:01:06]} Ke8 {[%emt 0:00:55]} 27. Rc5 {[%emt 0:04:54]} Rd7 {[%emt 0:00:38]} 28. Kf3 {[%emt 0:00:22]} Ke7 {[%emt 0:02:02]} 29. Rc6 {[%emt 0:00:09]} Kd8 {[%emt 0:02:50]} 30. Kf4 {[%emt 0:00:09]} Re7 {[%emt 0:02:53]} 31. Rc5 {[%emt 0:00:52]} Rd7 {[%emt 0:08:46]} 32. Ke5 {[%emt 0:00:16]} c6 {[%emt 0:00:57]} 33. Rxc6 {[%emt 0:00:08]} Rb7 {[%emt 0:00:07]} 34. Rd6+ {[%emt 0:00:15]} Ke7 {[%emt 0:00:57]} 35. Rxd5 {[%emt 0:00:21]} Rxb4 {[%emt 0:00:37]} 36. Kxf5 {[%emt 0:01:05]} Rb2 {[%emt 0:02:21]} 37. f3 {[%emt 0:00:15]} Rxg2 {[%emt 0:00:16]} 38. g4 {[%emt 0:00:02]} Rg3 {[%emt 0:01:49]} 39. Kf4 {[%emt 0:00:04]} Rh3 {[%emt 0:00:27]} 40. Rh5 {[%emt 0:00:04]} 1-0

[Event "1st 4NCL International U2050"]
[Site "Telford"]
[Date "2018.11.02"]
[Round "5"]
[White "Burgoyne, Peter A"]
[Black "Gostelow, David W"]
[Result "1/2-1/2"]
[ECO "B22"]
[WhiteElo "1665"]
[BlackElo "1892"]
[Annotator "NA"]
[PlyCount "81"]
[EventDate "2018.10.31"]
[EventType "swiss"]
[EventCountry "GBR"]
[SourceTitle "playchess.com"]
[Source "ChessBase"]
[SourceQuality "1"]
[TimeControl "5400+30"]

1. e4 {[%emt 0:00:00]} c5 {[%emt 0:00:00]} 2. c3 {[%emt 0:00:00]} d5 {[%emt 0:00:00]} 3. exd5 {[%emt 0:00:01]} Nf6 {[%emt 0:00:00]} 4. Nf3 {[%emt 0:01:24]} Nxd5 {[%emt 0:00:31]} 5. Bc4 {[%emt 0:01:20]} e6 {[%emt 0:02:18]} 6. O-O {[%emt 0:01:01]} Be7 {[%emt 0:02:33]} 7. d4 {[%emt 0:00:39]} O-O {[%emt 0:05:47]} 8. Nbd2 {[%emt 0:05:13]} Nc6 {[%emt 0:02:28]} 9. Nb3 {[%emt 0:02:07]} b6 {[%emt 0:06:44]} 10. Re1 {[%emt 0:03:36]} cxd4 {[%emt 0:04:09]} 11. Nbxd4 {[%emt 0:01:38]} Nxd4 {[%emt 0:01:50]} 12. Nxd4 {[%emt 0:01:35]} Bb7 {[%emt 0:00:34]} 13. Qe2 {[%emt 0:04:21]} Rc8 {[%emt 0:04:05]} 14. Bd3 {[%emt 0:04:17]} Qd6 {[%emt 0:09:30]} 15. Qe4 {[%emt 0:11:23]} g6 {[%emt 0:00:27]} 16. Bh6 {[%emt 0:07:07]} Rfd8 {[%emt 0:00:14]} 17. Qe2 {[%emt 0:11:47]} Bf8 {[%emt 0:09:10]} 18. Bg5 {[%emt 0:03:30]} Nf4 {[%emt 0:02:19]} 19. Bxf4 {[%emt 0:04:16]} Qxf4 {[%emt 0:00:14]} 20. Rad1 {[%emt 0:02:46]} Bg7 {[%emt 0:08:33]} 21. Qe3 {[%emt 0:05:01]} Qg4 {[%emt 0:02:07]} 22. Bf1 {[%emt 0:08:44]} Bxd4 {[%emt 0:03:52]} 23. cxd4 {[%emt 0:04:37]} Rc2 {[%emt 0:02:49]} 24. Re2 {[%emt 0:05:17]} Rxe2 {[%emt 0:10:29]} 25. Qxe2 {[%emt 0:00:23]} Rxd4 {[%emt 0:00:34]} 26. Qxg4 {[%emt 0:01:37]} Rxg4 {[%emt 0:00:02]} 27. Rd7 {[%emt 0:00:14]} Bd5 {[%emt 0:00:15]} 28. Rxa7 {[%emt 0:00:14]} Rd4 {[%emt 0:00:30]} 29. b3 {[%emt 0:03:41]} Rd1 {[%emt 0:02:32]} 30. f3 {[%emt 0:00:21]} Ra1 {[%emt 0:03:09]} 31. Ra3 {[%emt 0:01:29]} Kg7 {[%emt 0:08:19]} 32. Kf2 {[%emt 0:00:09]} Rc1 {[%emt 0:00:16]} 33. Bd3 {[%emt 0:00:30]} Rd1 {[%emt 0:00:52]} 34. Be4 {[%emt 0:01:06]} Rd2+ {[%emt 0:01:38]} 35. Kg3 {[%emt 0:00:41]} Bxe4 {[%emt 0:00:25]} 36. fxe4 {[%emt 0:00:06]} Kf6 {[%emt 0:00:27]} 37. Ra4 {[%emt 0:00:56]} h5 {[%emt 0:01:03]} 38. Kf3 {[%emt 0:00:39]} g5 {[%emt 0:00:50]} 39. h3 {[%emt 0:00:20]} Rc2 {[%emt 0:01:50]} 40. Rb4 {[%emt 0:01:40]} Rc3+ {[%emt 0:01:04]} 41. Kf2 {[%emt 0:00:13]} 1/2-1/2

[Event "1st 4NCL International U2050"]
[Site "Telford"]
[Date "2018.11.02"]
[Round "5"]
[White "Murphy, Ross"]
[Black "Aubury, Benjamin"]
[Result "0-1"]
[ECO "E62"]
[WhiteElo "1652"]
[BlackElo "1566"]
[Annotator "NA"]
[PlyCount "116"]
[EventDate "2018.10.31"]
[EventType "swiss"]
[EventCountry "GBR"]
[SourceTitle "playchess.com"]
[Source "ChessBase"]
[SourceQuality "1"]
[TimeControl "5400+30"]

1. Nf3 {[%emt 0:00:00]} Nf6 {[%emt 0:00:04]} 2. g3 {[%emt 0:02:17]} g6 {[%emt 0:00:29]} 3. Bg2 {[%emt 0:00:08]} Bg7 {[%emt 0:00:06]} 4. c4 {[%emt 0:00:12]} O-O {[%emt 0:00:17]} 5. d4 {[%emt 0:00:08]} Nc6 {[%emt 0:00:33]} 6. Nc3 {[%emt 0:00:19]} d6 {[%emt 0:00:07]} 7. d5 {[%emt 0:00:26]} Na5 {[%emt 0:00:03]} 8. Nd2 {[%emt 0:01:07]} c5 {[%emt 0:01:18]} 9. dxc6 {[%emt 0:00:33]} Nxc6 {[%emt 0:00:05]} 10. O-O {[%emt 0:00:21]} a6 {[%emt 0:01:14]} 11. Rb1 {[%emt 0:01:20]} Bf5 {[%emt 0:01:54]} 12. e4 {[%emt 0:01:10]} Bd7 {[%emt 0:00:18]} 13. Nd5 {[%emt 0:01:46]} Rc8 {[%emt 0:03:19]} 14. b3 {[%emt 0:02:41]} Qa5 {[%emt 0:03:56]} 15. Nxf6+ {[%emt 0:01:57]} Bxf6 {[%emt 0:00:19]} 16. Bb2 {[%emt 0:00:49]} Qxa2 {[%emt 0:04:15]} 17. Bxf6 {[%emt 0:00:20]} exf6 {[%emt 0:00:21]} 18. Nf3 {[%emt 0:00:40]} Qa3 {[%emt 0:00:24]} 19. b4 {[%emt 0:04:33]} Bg4 {[%emt 0:02:27]} 20. h3 {[%emt 0:05:11]} Bxf3 {[%emt 0:00:16]} 21. Bxf3 {[%emt 0:00:25]} Ne5 {[%emt 0:00:19]} 22. Rb3 {[%emt 0:03:42]} Qa4 {[%emt 0:00:31]} 23. Bg2 {[%emt 0:10:25]} Nxc4 {[%emt 0:00:59]} 24. Qd3 {[%emt 0:01:40]} Ne5 {[%emt 0:09:24]} 25. Qd5 {[%emt 0:00:21]} Rc4 {[%emt 0:02:28]} 26. Rfb1 {[%emt 0:00:46]} Qc6 {[%emt 0:00:58]} 27. Qd1 {[%emt 0:01:59]} Rc8 {[%emt 0:00:48]} 28. b5 {[%emt 0:01:06]} axb5 {[%emt 0:00:55]} 29. Rxb5 {[%emt 0:00:12]} Rc1 {[%emt 0:00:45]} 30. Rxc1 {[%emt 0:00:20]} Qxc1 {[%emt 0:00:06]} 31. Qxc1 {[%emt 0:01:56]} Rxc1+ {[%emt 0:00:07]} 32. Kh2 {[%emt 0:00:25]} Rc7 {[%emt 0:00:23]} 33. f4 {[%emt 0:01:27]} Nc6 {[%emt 0:00:31]} 34. h4 {[%emt 0:02:06]} Kf8 {[%emt 0:00:32]} 35. Kh3 {[%emt 0:02:11]} Ke7 {[%emt 0:01:13]} 36. Kg4 {[%emt 0:03:30]} h5+ {[%emt 0:00:36]} 37. Kh3 {[%emt 0:00:14]} Nd4 {[%emt 0:01:18]} 38. Rb2 {[%emt 0:01:08]} b5 {[%emt 0:01:26]} 39. Rd2 {[%emt 0:02:17]} Nc6 {[%emt 0:00:49]} 40. Rc2 {[%emt 0:03:09]} Kd7 {[%emt 0:00:19]} 41. Rb2 {[%emt 0:01:03]} b4 {[%emt 0:01:48]} 42. e5 {[%emt 0:03:10]} fxe5 {[%emt 0:00:14]} 43. fxe5 {[%emt 0:03:04]} dxe5 {[%emt 0:00:24]} 44. Bxc6+ {[%emt 0:00:51]} Kxc6 {[%emt 0:00:24]} 45. Rxb4 {[%emt 0:00:08]} Re7 {[%emt 0:00:14]} 46. Kg2 {[%emt 0:00:30]} Kc5 {[%emt 0:01:00]} 47. Ra4 {[%emt 0:00:17]} e4 {[%emt 0:00:20]} 48. Kf2 {[%emt 0:00:20]} Kb5 {[%emt 0:00:36]} 49. Rd4 {[%emt 0:00:10]} Kc5 {[%emt 0:00:03]} 50. Ra4 {[%emt 0:00:12]} e3+ {[%emt 0:00:46]} 51. Ke2 {[%emt 0:00:18]} Kd5 {[%emt 0:00:24]} 52. Rf4 {[%emt 0:02:05]} f5 {[%emt 0:05:15]} 53. Rf3 {[%emt 0:01:26]} Re4 {[%emt 0:00:30]} 54. Rxe3 {[%emt 0:00:17]} Kd4 {[%emt 0:00:06]} 55. Rxe4+ {[%emt 0:00:31]} fxe4 {[%emt 0:00:17]} 56. Kd2 {[%emt 0:00:27]} e3+ {[%emt 0:00:05]} 57. Ke1 {[%emt 0:01:07]} Ke5 {[%emt 0:01:26]} 58. Ke2 {[%emt 0:01:11]} Ke4 {[%emt 0:00:08]} 0-1

[Event "1st 4NCL International U2050"]
[Site "Telford"]
[Date "2018.11.02"]
[Round "5"]
[White "Chung, Ethan Cheung Jing"]
[Black "Towers, Nigel S"]
[Result "0-1"]
[ECO "B13"]
[WhiteElo "1584"]
[BlackElo "1843"]
[Annotator "NA"]
[PlyCount "114"]
[EventDate "2018.10.31"]
[EventType "swiss"]
[EventCountry "GBR"]
[SourceTitle "playchess.com"]
[Source "ChessBase"]
[SourceQuality "1"]
[TimeControl "5400+30"]

1. e4 {[%emt 0:00:00]} c6 {[%emt 0:00:00]} 2. d4 {[%emt 0:00:00]} d5 {[%emt 0:00:00]} 3. exd5 {[%emt 0:00:00]} cxd5 {[%emt 0:00:00]} 4. c4 {[%emt 0:00:13]} Nf6 {[%emt 0:00:00]} 5. Nc3 {[%emt 0:00:13]} Nc6 {[%emt 0:00:00]} 6. Nf3 {[%emt 0:00:16]} Bg4 {[%emt 0:00:17]} 7. cxd5 {[%emt 0:00:29]} Nxd5 {[%emt 0:00:18]} 8. Qb3 {[%emt 0:01:14]} Bxf3 {[%emt 0:00:16]} 9. gxf3 {[%emt 0:00:13]} e6 {[%emt 0:00:23]} 10. Qxb7 {[%emt 0:08:15]} Nxd4 {[%emt 0:00:34]} 11. Bb5+ {[%emt 0:09:31]} Nxb5 {[%emt 0:00:32]} 12. Qxb5+ {[%emt 0:00:06]} Qd7 {[%emt 0:02:34]} 13. Qxd7+ {[%emt 0:03:37]} Kxd7 {[%emt 0:00:07]} 14. Nxd5 {[%emt 0:00:05]} exd5 {[%emt 0:00:05]} 15. Be3 {[%emt 0:00:52]} Bb4+ {[%emt 0:00:35]} 16. Ke2 {[%emt 0:00:19]} Ba5 {[%emt 0:06:11]} 17. Rad1 {[%emt 0:01:08]} Ke6 {[%emt 0:00:35]} 18. Rhg1 {[%emt 0:03:10]} g6 {[%emt 0:00:53]} 19. Rd3 {[%emt 0:04:04]} Rab8 {[%emt 0:04:01]} 20. b3 {[%emt 0:02:35]} Bb6 {[%emt 0:00:36]} 21. Rgd1 {[%emt 0:03:07]} Rhd8 {[%emt 0:00:50]} 22. f4 {[%emt 0:04:15]} Rbc8 {[%emt 0:02:18]} 23. Kf3 {[%emt 0:09:47]} Rc2 {[%emt 0:01:22]} 24. a4 {[%emt 0:01:29]} Bxe3 {[%emt 0:00:46]} 25. Rxe3+ {[%emt 0:00:52]} Kd6 {[%emt 0:01:32]} 26. Re5 {[%emt 0:03:45]} Kc6 {[%emt 0:08:31]} 27. Re7 {[%emt 0:04:00]} Rc3+ {[%emt 0:00:00]} 28. Ke2 {[%emt 0:02:34]} Rxb3 {[%emt 0:00:00]} 29. Rxf7 {[%emt 0:01:13]} Rh3 {[%emt 0:06:21]} 30. Rxa7 {[%emt 0:02:57]} d4 {[%emt 0:02:51]} 31. Ra5 {[%emt 0:09:01]} Rc3 {[%emt 0:05:52]} 32. Rd3 {[%emt 0:02:20]} Rc2+ {[%emt 0:02:26]} 33. Kf3 {[%emt 0:03:16]} Rc4 {[%emt 0:06:35]} 34. Ra7 {[%emt 0:02:22]} Kc5 {[%emt 0:06:34]} 35. Rxh7 {[%emt 0:03:40]} Rxa4 {[%emt 0:00:25]} 36. Rc7+ {[%emt 0:00:33]} Kd5 {[%emt 0:01:46]} 37. Re7 {[%emt 0:01:01]} Kc4 {[%emt 0:02:37]} 38. Rd1 {[%emt 0:01:35]} Ra3+ {[%emt 0:01:44]} 39. Ke2 {[%emt 0:01:14]} d3+ {[%emt 0:08:07]} 40. Ke1 {[%emt 0:00:17]} Rd6 {[%emt 0:03:07]} 41. h4 {[%emt 0:01:01]} Raa6 {[%emt 0:03:56]} 42. Rc7+ {[%emt 0:01:08]} Kd4 {[%emt 0:01:05]} 43. Re7 {[%emt 0:01:15]} Re6+ {[%emt 0:00:14]} 44. Rxe6 {[%emt 0:00:04]} Rxe6+ {[%emt 0:00:05]} 45. Kf1 {[%emt 0:00:23]} Kc3 {[%emt 0:00:45]} 46. Ra1 {[%emt 0:01:16]} d2 {[%emt 0:02:20]} 47. Kg2 {[%emt 0:02:51]} Kb2 {[%emt 0:00:22]} 48. Rd1 {[%emt 0:00:41]} Kc2 {[%emt 0:00:08]} 49. Ra1 {[%emt 0:00:10]} d1=Q {[%emt 0:01:22]} 50. Rxd1 {[%emt 0:00:03]} Kxd1 {[%emt 0:00:06]} 51. Kg3 {[%emt 0:00:02]} Ke2 {[%emt 0:00:12]} 52. Kg4 {[%emt 0:00:27]} Kxf2 {[%emt 0:01:07]} 53. f5 {[%emt 0:01:07]} Re4+ {[%emt 0:00:53]} 54. Kg5 {[%emt 0:00:55]} gxf5 {[%emt 0:00:14]} 55. h5 {[%emt 0:00:53]} f4 {[%emt 0:00:22]} 56. Kf5 {[%emt 0:00:29]} Ra4 {[%emt 0:00:14]} 57. h6 {[%emt 0:00:10]} f3 {[%emt 0:00:07]} 0-1

[Event "1st 4NCL International U2050"]
[Site "Telford"]
[Date "2018.11.03"]
[Round "6"]
[White "Whitehead, Mark A"]
[Black "Neatherway, A Philip"]
[Result "1/2-1/2"]
[ECO "B25"]
[WhiteElo "1945"]
[BlackElo "1813"]
[Annotator "NA"]
[PlyCount "84"]
[EventDate "2018.10.31"]
[EventType "swiss"]
[EventCountry "GBR"]
[SourceTitle "playchess.com"]
[Source "ChessBase"]
[SourceQuality "1"]
[TimeControl "5400+30"]

1. e4 {[%emt 0:01:11]} c5 {[%emt 0:00:00]} 2. Nc3 {[%emt 0:00:10]} Nc6 {[%emt 0:00:00]} 3. g3 {[%emt 0:00:05]} g6 {[%emt 0:00:00]} 4. Bg2 {[%emt 0:00:04]} Bg7 {[%emt 0:00:00]} 5. d3 {[%emt 0:00:11]} d6 {[%emt 0:00:00]} 6. Nh3 {[%emt 0:00:30]} e6 {[%emt 0:05:36]} 7. O-O {[%emt 0:02:44]} Nge7 {[%emt 0:00:50]} 8. f4 {[%emt 0:02:00]} O-O {[%emt 0:03:25]} 9. Ne2 {[%emt 0:04:56]} f5 {[%emt 0:06:06]} 10. c3 {[%emt 0:05:51]} Qb6 {[%emt 0:17:22]} 11. Nf2 {[%emt 0:05:22]} e5 {[%emt 0:06:18]} 12. Qc2 {[%emt 0:07:04]} Be6 {[%emt 0:01:49]} 13. fxe5 {[%emt 0:05:00]} dxe5 {[%emt 0:00:09]} 14. c4 {[%emt 0:00:44]} Rad8 {[%emt 0:03:02]} 15. Bg5 {[%emt 0:04:10]} h6 {[%emt 0:05:29]} 16. Bd2 {[%emt 0:03:23]} Nd4 {[%emt 0:05:26]} 17. Nxd4 {[%emt 0:00:22]} cxd4 {[%emt 0:00:05]} 18. b4 {[%emt 0:01:15]} Qc7 {[%emt 0:05:22]} 19. Rae1 {[%emt 0:04:23]} f4 {[%emt 0:05:25]} 20. Qd1 {[%emt 0:08:13]} Qd7 {[%emt 0:01:56]} 21. a4 {[%emt 0:02:55]} g5 {[%emt 0:01:38]} 22. g4 {[%emt 0:01:51]} Ng6 {[%emt 0:00:22]} 23. b5 {[%emt 0:00:47]} Nh4 {[%emt 0:00:28]} 24. Bf3 {[%emt 0:00:06]} Bf6 {[%emt 0:09:10]} 25. Bb4 {[%emt 0:01:46]} Rf7 {[%emt 0:00:49]} 26. Qe2 {[%emt 0:00:15]} Bxc4 {[%emt 0:06:28]} 27. dxc4 {[%emt 0:02:51]} d3 {[%emt 0:00:05]} 28. Nxd3 {[%emt 0:00:08]} Qxd3 {[%emt 0:00:04]} 29. Rd1 {[%emt 0:00:38]} Qxe2 {[%emt 0:06:06]} 30. Bxe2 {[%emt 0:01:11]} f3 {[%emt 0:04:30]} 31. Rxd8+ {[%emt 0:02:02]} Bxd8 {[%emt 0:00:06]} 32. Bd1 {[%emt 0:00:17]} Rf4 {[%emt 0:01:09]} 33. h3 {[%emt 0:00:20]} Rxe4 {[%emt 0:00:50]} 34. Bxf3 {[%emt 0:00:11]} Nxf3+ {[%emt 0:02:12]} 35. Rxf3 {[%emt 0:00:15]} Rxc4 {[%emt 0:00:30]} 36. Rf8+ {[%emt 0:01:06]} Kg7 {[%emt 0:00:05]} 37. Rxd8 {[%emt 0:00:09]} Rxb4 {[%emt 0:00:04]} 38. Rd7+ {[%emt 0:00:08]} Kf6 {[%emt 0:01:04]} 39. Rxb7 {[%emt 0:00:08]} Rxa4 {[%emt 0:00:05]} 40. b6 {[%emt 0:00:08]} axb6 {[%emt 0:00:09]} 41. Rxb6+ {[%emt 0:00:07]} Kg7 {[%emt 0:00:14]} 42. Re6 {[%emt 0:01:04]} Ra3 {[%emt 0:01:28]} 1/2-1/2